bitfinex-derivatives/quotes_BNBF0:USTF0_20250425
["timestamp","ask_amount","ask_price","bid_price","bid_amount"]
[1745578188337,1.36639339,606.79,604.66,0.30345879]
[1745578188638,1.36639339,606.78,604.67,0.30345879]
[1745578188834,1.36639339,606.77,604.65,0.28734564]
[1745578189056,1.36639339,606.76,604.67,1.056]
[1745578189233,1.36639339,606.75,604.67,1.056]
[1745578189440,1.36960228,606.74,604.68,0.30345879]
[1745578189733,2.49253486,606.73,604.68,0.30345879]
[1745578189938,1.36960228,606.72,604.68,0.30345879]
[1745578190147,1.36960228,606.71,604.68,0.30345879]
[1745578190334,1.36960228,606.7,604.68,0.30345879]
[1745578190533,2.49253486,606.69,604.68,0.30345879]
[1745578190838,1.36960228,606.68,604.68,0.30345879]
[1745578191133,2.49253486,606.67,604.68,0.30345879]
[1745578191336,1.36960228,606.66,604.68,1.28145879]
[1745578191539,2.49253486,606.65,604.69,0.30345879]
[1745578191739,1.36960228,606.64,604.69,0.30345879]
[1745578191935,1.36960228,606.63,604.69,0.30345879]
[1745578192140,2.49253486,606.62,604.69,0.30345879]
[1745578192334,1.36960228,606.61,604.69,0.30345879]
[1745578192640,1.36960228,606.6,604.69,0.30345879]
[1745578192840,2.49253486,606.59,604.69,0.30345879]
[1745578193036,2.49253486,606.58,604.69,0.30345879]
[1745578193240,1.36960228,606.57,604.69,0.30345879]
[1745578193439,1.36960228,606.56,604.69,0.30345879]
[1745578193736,2.49253486,606.55,604.69,0.30345879]
[1745578193942,1.36960228,606.54,604.69,0.30345879]
[1745578194142,1.36960228,606.53,604.7,0.30345143]
[1745578194341,1.36960228,606.52,604.69,0.30345143]
[1745578194543,2.49253486,606.51,604.7,0.30345143]
[1745578194744,1.36960228,606.5,604.69,0.30345143]
[1745578194944,1.36960228,606.49,604.7,0.30345143]
[1745578195143,1.36960228,606.48,604.69,0.30345143]
[1745578195370,0.28737649,606.73,604.7,0.30345143]
[1745578195371,2.49253486,606.47,604.7,0.30345143]
[1745578195546,1.36960228,606.46,604.69,0.30345143]
[1745578195851,2.49253486,606.45,604.7,0.30345143]
[1745578196039,1.36960228,606.44,604.69,0.30345143]
[1745578196241,1.36960228,606.43,604.7,0.30345143]
[1745578196445,2.49253486,606.42,604.69,0.30345143]
[1745578196641,1.37206205,606.41,604.71,0.30345143]
[1745578196844,2.49499463,606.4,604.72,0.30345143]
[1745578197146,2.49499463,606.4,604.68,0.978]
[1745578197147,1.37206205,606.39,604.75,1.04680513]
[1745578197346,1.37206205,606.38,604.76,0.30345143]
[1745578197553,1.37206205,606.37,604.76,0.30345143]
[1745578197846,1.37206205,606.36,604.76,0.30345143]
[1745578198048,2.49499463,606.35,604.76,0.30345143]
[1745578198246,1.37206205,606.34,604.76,0.30345143]
[1745578198449,1.37206205,606.33,604.76,0.30345143]
[1745578198648,1.37206205,606.32,604.76,0.30345143]
[1745578198843,1.37206205,606.31,604.76,0.30345143]
[1745578199047,1.37206205,606.3,604.76,0.30345143]
[1745578199247,1.37206205,606.29,604.76,0.30345143]
[1745578199549,2.49499463,606.28,604.76,0.30345143]
[1745578199748,1.37206205,606.27,604.78,1.04680513]
[1745578200047,1.37206205,606.26,604.79,0.30345143]
[1745578200243,0.28737649,606.73,604.79,0.30345143]
[1745578200548,2.50373156,606.72,604.79,0.30345143]
[1745578200745,1.37283823,606.71,604.79,0.30345143]
[1745578200944,2.50373156,606.7,604.79,0.30345143]
[1745578201148,1.37283823,606.69,604.79,0.30345143]
[1745578201345,2.50373156,606.68,604.78,1.04680513]
[1745578201547,1.37319467,606.67,604.79,0.30344323]
[1745578201742,1.37319467,606.66,604.79,0.30344323]
[1745578201949,1.37319467,606.65,604.79,0.30344323]
[1745578202144,1.37319467,606.64,604.79,0.30344323]
[1745578202349,1.37319467,606.63,604.79,1.44044323]
[1745578202550,1.37319467,606.62,604.8,0.30344323]
[1745578202747,1.37319467,606.61,604.8,0.30344323]
[1745578202943,2.504088,606.6,604.8,0.30344323]
[1745578203143,1.37319467,606.59,604.79,1.137]
[1745578203444,1.37319467,606.58,604.79,1.137]
[1745578203645,1.37319467,606.57,604.79,1.137]
[1745578203845,1.37319467,606.56,604.79,1.137]
[1745578204045,1.37319467,606.55,604.79,1.137]
[1745578204348,1.37319467,606.54,604.79,1.137]
[1745578204547,1.37319467,606.53,604.79,1.137]
[1745578204748,2.504088,606.52,604.79,1.137]
[1745578204944,1.37319467,606.51,604.79,1.137]
[1745578205143,2.50575312,606.5,604.79,1.137]
[1745578205345,1.37485979,606.49,604.79,2.083]
[1745578205546,1.37485979,606.48,604.79,2.083]
[1745578205745,1.37485979,606.47,604.79,2.083]
[1745578206045,1.37485979,606.46,604.79,2.083]
[1745578206247,2.50575312,606.45,604.79,2.083]
[1745578206448,1.37485979,606.44,604.79,2.083]
[1745578206650,2.50575312,606.43,604.79,2.083]
[1745578206845,1.37485979,606.42,604.79,2.083]
[1745578207051,1.37611223,606.41,604.79,2.083]
[1745578207248,2.50700556,606.4,604.79,2.083]
[1745578207445,1.37611223,606.39,604.79,2.083]
[1745578207745,2.50700556,606.38,604.79,2.083]
[1745578207945,1.37611223,606.37,604.79,2.083]
[1745578208145,1.37611223,606.36,604.79,2.083]
[1745578208346,2.50700556,606.35,604.79,2.083]
[1745578208545,1.37611223,606.34,604.79,2.083]
[1745578208748,2.50700556,606.33,604.79,2.083]
[1745578208948,1.37611223,606.32,604.79,2.083]
[1745578209248,1.37611223,606.31,604.79,2.083]
[1745578209444,1.37611223,606.3,604.79,2.083]
[1745578209751,2.50700556,606.29,604.79,2.083]
[1745578209951,1.37611223,606.28,604.79,2.083]
[1745578210251,2.50700556,606.27,604.79,2.083]
[1745578210452,1.37611223,606.26,604.79,2.083]
[1745578210648,1.37888343,606.25,604.79,2.083]
[1745578210848,1.37888343,606.24,604.79,2.083]
[1745578211046,2.50977676,606.23,604.79,2.083]
[1745578211245,1.37888343,606.22,604.79,2.083]
[1745578211446,1.37888343,606.21,604.79,2.083]
[1745578211744,1.37888343,606.2,604.79,2.083]
[1745578211954,1.37888343,606.19,604.79,2.083]
[1745578212146,1.37888343,606.18,604.79,2.083]
[1745578212447,1.37888343,606.17,604.79,1.137]
[1745578212649,1.37888343,606.16,604.79,1.137]
[1745578212849,2.50977676,606.15,604.79,1.137]
[1745578213049,1.37888343,606.14,604.79,1.137]
[1745578213252,1.37888343,606.13,604.77,0.28739667]
[1745578213550,2.50977676,606.12,604.77,0.28739667]
[1745578213749,1.37888343,606.11,604.77,0.28739667]
[1745578213949,2.50977676,606.1,604.77,0.28739667]
[1745578214250,1.37895157,606.09,604.77,0.28739667]
[1745578214457,1.37895157,606.08,604.77,0.28739667]
[1745578214647,2.5098449,606.07,604.77,0.28739667]
[1745578214852,1.37895157,606.06,604.77,0.28739667]
[1745578215045,2.5098449,606.05,604.77,0.28739667]
[1745578215251,1.37895157,606.04,604.77,0.28739667]
[1745578215453,2.5098449,606.03,604.77,0.28739667]
[1745578215651,1.37895157,606.02,604.69,1.04680513]
[1745578215953,2.5098449,606.01,604.77,0.28743108]
[1745578216153,1.37901701,606.0,604.69,1.04680513]
[1745578216354,1.37901701,605.99,604.77,0.28743227]
[1745578216555,2.50991034,605.98,604.77,0.28743227]
[1745578216755,1.24128218,607.1,604.69,1.04680513]
[1745578216756,2.50991034,605.97,604.69,1.04680513]
[1745578217052,1.37901701,605.96,604.77,0.28743465]
[1745578217255,1.37901701,605.95,604.78,0.30343492]
[1745578217455,2.50991034,605.94,604.79,0.30343492]
[1745578217756,1.37901701,605.93,604.8,0.30343492]
[1745578217951,1.37901701,605.92,604.73,0.30343492]
[1745578218157,2.50991034,605.91,604.74,0.30343492]
[1745578218453,1.37901701,605.9,604.75,0.303435]
[1745578218661,1.37901701,605.89,604.75,0.303435]
[1745578218959,2.50991034,605.88,604.72,1.33424809]
[1745578219151,1.37901701,605.87,604.72,1.33424809]
[1745578219452,1.37901701,605.86,604.72,1.33424809]
[1745578219655,1.37901701,605.85,604.75,1.04680513]
[1745578219856,1.37901701,605.84,604.75,1.04680513]
[1745578220058,2.50991034,605.83,604.75,1.04680513]
[1745578220259,1.37901701,605.82,604.75,1.04680513]
[1745578220455,2.50991034,605.81,604.75,1.04680513]
[1745578220660,1.37901701,605.8,604.75,1.04680513]
[1745578220856,1.37901701,605.79,604.75,1.04680513]
[1745578221060,1.37901701,605.78,604.75,1.04680513]
[1745578221254,1.37901701,605.77,604.75,1.04680513]
[1745578221458,1.37901701,605.76,604.75,1.04680513]
[1745578221763,1.3800589,605.75,604.75,1.04680513]
[1745578221955,1.3800589,605.75,604.43,1.04680513]
[1745578221956,1.3800589,605.74,604.65,1.04680513]
[1745578222265,1.13089333,605.76,604.65,1.04680513]
[1745578222266,2.51095223,605.73,604.73,0.28745601]
[1745578222461,1.3800589,605.72,604.65,1.04680513]
[1745578222670,1.3800589,605.71,604.66,0.30344072]
[1745578222865,1.13089333,605.73,604.66,0.30344072]
[1745578222866,1.3800589,605.7,604.66,0.30344072]
[1745578223056,1.3800589,605.69,604.65,1.04680513]
[1745578223257,1.3800589,605.68,604.66,0.30344352]
[1745578223463,2.51113415,605.67,604.66,0.30344352]
[1745578223659,1.38024082,605.66,604.66,0.59091972]
[1745578223862,1.38024082,605.65,604.67,0.30344352]
[1745578224060,1.38024082,605.64,604.67,0.30344352]
[1745578224260,1.38024082,605.63,604.67,0.30344352]
[1745578224458,2.51113415,605.62,604.67,0.30344352]
[1745578224656,1.38024082,605.61,604.68,0.30344186]
[1745578224862,2.51113415,605.6,604.66,0.28748332]
[1745578225063,1.38024082,605.59,604.66,0.28748332]
[1745578225263,1.38024082,605.58,604.66,0.28748332]
[1745578225464,1.38024082,605.57,604.66,0.28748332]
[1745578225666,1.38024082,605.56,604.67,0.30344264]
[1745578225862,1.38024082,605.55,604.66,0.28748332]
[1745578226163,2.51113415,605.54,604.66,0.28748332]
[1745578226459,1.38024082,605.53,604.66,0.28748332]
[1745578226659,2.51113415,605.52,604.67,0.30344214]
[1745578226862,1.38024082,605.51,604.67,0.30344214]
[1745578227064,1.38048183,605.5,604.67,0.30344214]
[1745578227259,1.38048183,605.49,604.67,0.30344214]
[1745578227462,2.51137516,605.48,604.67,0.30344214]
[1745578227662,1.38048183,605.47,604.67,0.30344214]
[1745578227883,1.38048183,605.46,604.67,0.30344214]
[1745578228160,2.51137516,605.45,604.67,0.30344214]
[1745578228364,2.51137516,605.44,604.67,0.30344214]
[1745578228564,1.38048183,605.43,604.67,0.30344214]
[1745578228760,2.51137516,605.42,604.67,0.30344214]
[1745578228960,1.38053101,605.41,604.67,0.30344214]
[1745578229160,1.38053101,605.4,604.67,0.30344214]
[1745578229364,1.38053101,605.39,604.72,1.04680513]
[1745578229566,1.38053101,605.38,604.73,0.30344214]
[1745578229768,1.38053101,605.37,604.73,0.30344214]
[1745578229975,2.51142434,605.36,604.73,0.30344214]
[1745578230259,1.38053101,605.35,604.73,0.30344214]
[1745578230463,2.51142434,605.34,604.73,0.30344214]
[1745578230670,1.38053101,605.33,604.73,0.30344214]
[1745578230866,1.38053101,605.32,604.73,0.30344214]
[1745578231065,2.51142434,605.31,604.74,0.30345507]
[1745578231263,1.38053101,605.3,604.75,0.30345507]
[1745578231464,1.38053101,605.29,604.76,0.30345507]
[1745578231664,1.38053101,605.28,604.73,0.30345507]
[1745578231865,1.38053101,605.27,604.74,0.30345507]
[1745578232065,1.38053101,605.26,604.74,0.30345507]
[1745578232265,1.38053101,605.25,604.74,0.30345507]
[1745578232463,2.51142434,605.24,604.74,0.30345507]
[1745578232666,1.38053101,605.23,604.75,0.30345194]
[1745578232861,1.38053101,605.22,604.75,0.30345194]
[1745578233077,2.51142434,605.21,604.76,0.30345194]
[1745578233266,1.38053101,605.2,604.74,0.30345194]
[1745578233465,2.51142434,605.19,604.75,0.30345194]
[1745578233665,1.38053101,605.18,604.74,0.30345194]
[1745578233963,2.51142434,605.17,604.75,0.30345194]
[1745578234167,1.38053101,605.16,604.74,0.30345194]
[1745578234367,1.38053101,605.15,604.74,0.30345194]
[1745578234565,2.51142434,605.14,604.74,0.30345194]
[1745578234868,2.51142434,605.14,604.77,1.04680513]
[1745578234869,1.38053101,605.13,604.77,1.04680513]
[1745578235170,1.13089333,605.14,604.78,0.30345194]
[1745578236870,1.38056475,605.13,604.78,0.30345194]
[1745578237166,1.38085694,605.12,604.77,1.04680513]
[1745578237366,1.38085694,605.11,604.78,0.30345194]
[1745578237563,1.38085694,605.1,604.77,1.04680513]
[1745578237768,1.38085694,605.09,604.77,1.04680513]
[1745578237965,2.51175027,605.08,604.82,1.04680513]
[1745578238169,1.38085694,605.07,604.82,1.04680513]
[1745578238373,1.13089333,605.08,604.82,1.04680513]
[1745578238671,1.13089333,605.06,604.82,1.04680513]
[1745578239369,1.13089333,605.05,604.82,1.04680513]
[1745578239865,1.13089333,605.04,604.82,1.04680513]
[1745578240671,1.24128218,606.79,604.82,1.04680513]
[1745578240871,1.3812411,606.78,604.77,0.28754627]
[1745578241069,1.3812411,606.77,604.77,0.28754627]
[1745578241266,1.3812411,606.76,604.77,0.28754627]
[1745578241469,1.3812411,606.75,604.77,0.28754627]
[1745578241667,1.3812411,606.74,604.77,0.28754627]
[1745578241867,1.1377566,606.73,604.77,0.28754627]
[1745578242070,1.38120072,606.72,604.77,0.28754627]
[1745578242271,1.38120072,606.71,604.77,0.28754627]
[1745578242471,2.51895732,606.7,604.77,0.28754627]
[1745578242673,1.38120072,606.69,604.68,1.04680513]
[1745578242871,1.38120072,606.68,604.77,0.287367]
[1745578243068,2.51895732,606.67,604.77,0.287367]
[1745578243268,1.38120072,606.66,604.68,1.04680513]
[1745578243469,2.51895732,606.65,604.69,0.30346028]
[1745578243674,1.38120072,606.64,604.69,0.30346028]
[1745578243975,2.51973916,606.63,604.7,0.30346028]
[1745578244274,1.38160838,606.62,604.71,0.30346028]
[1745578244569,2.51973916,606.61,604.71,0.30346028]
[1745578244774,1.38160838,606.6,604.71,0.30346028]
[1745578244975,1.38160838,606.59,604.71,0.30346028]
[1745578245170,2.51973916,606.58,604.71,0.30346028]
[1745578245374,1.38160838,606.57,604.71,0.30346028]
[1745578245570,1.38185797,606.56,604.71,0.30346028]
[1745578245771,2.51998875,606.55,604.71,0.30346028]
[1745578245975,1.38185797,606.54,604.7,0.28738005]
[1745578246170,1.38185797,606.53,604.71,0.30345925]
[1745578246471,1.38185797,606.52,604.71,0.30345925]
[1745578246691,1.38185797,606.51,604.71,0.30345925]
[1745578246873,2.51998875,606.5,604.71,0.30345925]
[1745578247075,1.38185797,606.49,604.71,0.30345925]
[1745578247378,1.38188298,606.48,604.71,0.30345925]
[1745578247576,1.38188298,606.47,604.71,0.30345925]
[1745578247777,2.52001376,606.46,604.71,0.30345925]
[1745578248078,1.38188298,606.45,604.71,0.30345925]
[1745578248273,2.52001376,606.44,604.7,0.28738005]
[1745578248478,1.38188298,606.43,604.71,0.30346328]
[1745578248779,2.52001376,606.42,604.71,0.30346328]
[1745578249079,1.38188298,606.41,604.71,0.30346328]
[1745578249277,1.38188298,606.4,604.71,0.30346328]
[1745578249475,2.52001376,606.39,604.71,0.30346328]
[1745578249677,1.38188298,606.38,604.71,0.30346328]
[1745578249880,1.38188298,606.37,604.7,0.28738005]
[1745578250177,1.38188298,606.36,604.71,0.30346196]
[1745578250378,1.38188298,606.35,604.71,0.30346196]
[1745578250587,1.38188298,606.34,604.71,0.30346196]
[1745578250780,1.38188298,606.33,604.71,0.30346196]
[1745578251078,1.38194929,606.32,604.71,0.30346196]
[1745578251275,1.38194929,606.31,604.7,0.28738005]
[1745578251579,1.38194929,606.3,604.78,1.04680513]
[1745578251887,2.52008007,606.29,604.78,1.04680513]
[1745578252078,1.38194929,606.28,604.78,1.04680513]
[1745578252278,1.38194929,606.27,604.78,1.04680513]
[1745578252478,1.38194929,606.26,604.78,1.04680513]
[1745578252778,1.13813078,606.28,604.78,1.04680513]
[1745578252779,2.52008007,606.25,604.78,1.04680513]
[1745578253079,2.52008007,606.24,604.78,1.04680513]
[1745578253379,1.38194929,606.23,604.78,1.04680513]
[1745578253678,1.38194929,606.22,604.78,1.04680513]
[1745578253879,1.38194929,606.21,604.78,1.04680513]
[1745578254074,1.38194929,606.2,604.73,0.2874026]
[1745578254277,2.52008007,606.19,604.73,0.2874026]
[1745578254475,1.38194929,606.18,604.73,0.2874026]
[1745578254677,1.38194929,606.17,604.73,0.2874026]
[1745578254875,2.52008007,606.16,604.73,0.2874026]
[1745578255078,1.38194929,606.15,604.74,0.30347732]
[1745578255275,1.38194929,606.14,604.74,0.30347732]
[1745578255481,1.38194929,606.13,604.74,0.30347732]
[1745578255677,2.52008007,606.12,604.74,0.30347732]
[1745578255879,1.38194929,606.11,604.74,0.30347732]
[1745578256175,2.52008007,606.1,604.73,0.2874026]
[1745578256375,1.38194929,606.09,604.74,0.30347528]
[1745578256680,2.52008007,606.08,604.74,0.30347528]
[1745578256882,1.38194929,606.07,604.78,1.04680513]
[1745578257089,1.38194929,606.06,604.79,0.30347528]
[1745578257276,1.38194929,606.05,604.79,0.30347528]
[1745578257477,1.38194929,606.04,604.79,0.30347528]
[1745578257682,1.38194929,606.03,604.79,0.30347528]
[1745578257882,2.52008007,606.02,604.79,0.30347528]
[1745578258083,1.38194929,606.01,604.79,0.30347528]
[1745578258279,1.38194929,606.0,604.79,0.30347528]
[1745578258485,2.519333,605.99,604.79,0.30347528]
[1745578258679,2.519333,605.98,604.79,0.30347528]
[1745578258985,1.38120222,605.97,604.79,0.30347528]
[1745578259182,2.519333,605.96,604.79,0.30347528]
[1745578259381,1.38120222,605.95,604.79,0.30347528]
[1745578259579,2.519333,605.94,604.79,0.30347528]
[1745578259783,1.38120222,605.93,604.79,0.30347528]
[1745578259982,2.519333,605.92,604.79,0.30347528]
[1745578260206,1.38120222,605.91,604.79,0.30347528]
[1745578260385,2.519333,605.9,604.79,0.30347528]
[1745578260587,1.38120222,605.89,604.78,0.30347528]
[1745578260790,2.519333,605.88,604.77,1.04680513]
[1745578261087,1.38120222,605.87,604.77,1.04680513]
[1745578261287,1.38120222,605.86,604.77,1.04680513]
[1745578261485,1.38120222,605.85,604.77,1.04680513]
[1745578261685,1.38120222,605.84,604.77,1.04680513]
[1745578261882,1.38120222,605.83,604.77,1.33422197]
[1745578262085,1.38120222,605.82,604.78,0.30336635]
[1745578262287,1.38120222,605.81,604.78,0.30336635]
[1745578262486,1.38120222,605.8,604.78,0.30336635]
[1745578262682,1.38120222,605.79,604.78,0.30336635]
[1745578262898,1.38120222,605.78,604.78,0.30336635]
[1745578263087,1.38120222,605.77,604.78,0.30336635]
[1745578263284,2.519333,605.76,604.78,0.30336635]
[1745578263483,1.38120222,605.75,604.77,0.28741684]
[1745578263690,2.519333,605.74,604.78,0.30336226]
[1745578263888,1.38120222,605.73,604.78,0.30336226]
[1745578264088,2.519333,605.72,604.78,0.30336226]
[1745578264290,1.38120222,605.71,604.78,0.30336226]
[1745578264491,2.519333,605.7,604.78,0.30336226]
[1745578264785,1.38120222,605.69,604.78,0.30336226]
[1745578264990,1.38120222,605.68,604.78,0.30336226]
[1745578265289,2.519333,605.67,604.78,0.30336226]
[1745578265493,1.38120222,605.66,604.98,1.04680513]
[1745578265790,2.519333,605.65,604.99,0.30336226]
[1745578265986,1.38120222,605.64,604.98,1.04680513]
[1745578266190,1.38120222,605.63,604.98,1.04680513]
[1745578266384,1.38120222,605.62,604.98,1.04680513]
[1745578266585,1.38120222,605.61,604.98,1.04680513]
[1745578266890,2.51718196,605.6,604.98,1.04680513]
[1745578267093,2.51718196,605.59,604.98,1.04680513]
[1745578267386,2.51718196,605.58,604.99,0.30336086]
[1745578267591,1.37905118,605.57,604.99,0.30336086]
[1745578267788,2.51718196,605.56,604.99,0.30336086]
[1745578267994,1.37905118,605.55,604.86,0.30336086]
[1745578268187,1.37905118,605.54,604.85,0.28740853]
[1745578268493,1.37905118,605.53,604.86,0.30336196]
[1745578268691,1.37783863,605.52,604.86,0.30336196]
[1745578268988,1.37783863,605.51,604.86,0.30336196]
[1745578269192,2.51596941,605.5,604.86,0.30336196]
[1745578269392,1.37783863,605.49,604.86,0.30336196]
[1745578269587,2.51596941,605.48,604.86,0.30336196]
[1745578269791,1.37783863,605.47,604.86,0.30336196]
[1745578269992,1.37783863,605.47,604.82,1.04680513]
[1745578269993,1.37783863,605.46,604.85,0.28743939]
[1745578270188,1.37783863,605.45,604.86,0.30336196]
[1745578270393,1.37783863,605.45,604.85,0.28743939]
[1745578270394,1.37783863,605.44,604.85,0.28743939]
[1745578270692,2.51596941,605.43,604.85,0.28743939]
[1745578270889,1.37783863,605.42,604.85,0.28743939]
[1745578271194,1.37783863,605.41,604.85,0.28743939]
[1745578271395,2.51596941,605.4,604.85,0.28743939]
[1745578271594,1.37783863,605.39,604.85,0.28743939]
[1745578271788,1.37783863,605.38,604.85,0.28743939]
[1745578271993,2.51596941,605.37,604.85,0.28743939]
[1745578272192,1.37783863,605.36,604.85,0.28743939]
[1745578272394,2.51596941,605.35,604.85,0.28743939]
[1745578272595,1.13813078,605.35,604.85,0.28743939]
[1745578272996,1.13813078,605.34,604.86,0.30334622]
[1745578273196,0.28743821,606.9,604.86,0.30334622]
[1745578273396,1.37570847,606.89,604.86,0.30334622]
[1745578273696,2.50831539,606.88,604.87,1.164]
[1745578273890,1.37570847,606.87,604.88,0.30334622]
[1745578274096,1.37570847,606.86,604.88,0.30334622]
[1745578274297,1.37570847,606.85,604.88,0.30334622]
[1745578274594,1.37570847,606.84,604.88,0.30334622]
[1745578274897,1.37570847,606.83,604.88,0.30334622]
[1745578275097,1.13260692,606.84,604.88,0.30334622]
[1745578275098,1.37570847,606.82,604.88,0.30334622]
[1745578275297,2.50831539,606.81,604.88,0.30334622]
[1745578275495,1.37570847,606.8,604.88,0.30334622]
[1745578275692,1.37570847,606.79,604.88,0.30334622]
[1745578275998,1.37570847,606.78,604.88,0.30334622]
[1745578276191,2.50831539,606.77,604.88,0.30334622]
[1745578276395,1.37570847,606.76,604.88,0.30334622]
[1745578276593,1.37570847,606.75,604.88,0.30334622]
[1745578276793,2.50831539,606.74,604.88,0.30334622]
[1745578277009,1.37570847,606.73,604.88,0.30334622]
[1745578277199,1.37570847,606.72,604.88,0.30334622]
[1745578277390,2.50831539,606.71,604.88,0.30334622]
[1745578277594,1.37570847,606.7,604.87,1.164]
[1745578277796,1.37570847,606.69,604.88,0.30334575]
[1745578278096,2.50831539,606.68,604.88,0.30334575]
[1745578278295,1.37570847,606.67,604.88,0.30334575]
[1745578278494,1.37570847,606.66,604.88,0.30334575]
[1745578278697,1.37570847,606.65,604.88,0.30334575]
[1745578278895,1.37570847,606.64,604.88,0.30334575]
[1745578279094,1.37570847,606.63,604.88,0.30334575]
[1745578279395,1.37570847,606.62,604.88,0.30334575]
[1745578279592,1.37570847,606.61,604.88,0.30334575]
[1745578279891,2.50831539,606.6,604.88,0.30334575]
[1745578280095,1.37570847,606.59,604.88,0.30334575]
[1745578280298,2.50831539,606.58,604.88,0.30334575]
[1745578280494,2.50831539,606.57,604.88,0.30334575]
[1745578280694,1.37570847,606.56,604.88,0.30334575]
[1745578280899,1.13260692,606.57,604.88,0.30334575]
[1745578280900,1.37570847,606.55,604.88,0.30334575]
[1745578281100,1.37570847,606.54,604.88,0.30334575]
[1745578281295,1.37570847,606.53,604.88,0.30334575]
[1745578281493,1.37570847,606.52,604.88,0.30334575]
[1745578281701,1.37570847,606.51,604.88,0.30334575]
[1745578281893,1.37570847,606.5,604.88,0.30334575]
[1745578282097,2.50831539,606.49,604.88,0.30334575]
[1745578282299,1.37570847,606.48,604.88,0.30334575]
[1745578282497,2.50831539,606.47,604.88,0.30334575]
[1745578282698,1.37570847,606.46,604.88,0.30334575]
[1745578282995,2.50831539,606.45,604.88,0.30334575]
[1745578283195,1.37570847,606.44,604.88,0.30334575]
[1745578283499,2.50831539,606.43,604.88,0.30334575]
[1745578283697,1.37570847,606.42,604.88,0.30334575]
[1745578283894,1.37570847,606.41,604.88,0.30334575]
[1745578284101,1.37570847,606.4,604.89,0.30333603]
[1745578284394,1.37570847,606.39,604.9,0.30333603]
[1745578284599,1.37570847,606.38,604.91,0.30333603]
[1745578284797,1.37570847,606.37,604.88,0.30333603]
[1745578284998,1.37570847,606.36,604.89,0.30333603]
[1745578285299,1.37570847,606.35,604.9,0.30333603]
[1745578285502,1.37570847,606.34,604.9,0.30333603]
[1745578285700,1.37570847,606.33,604.91,0.30330418]
[1745578286000,2.50831539,606.32,604.92,0.30330418]
[1745578286201,1.37570847,606.31,604.88,0.30330418]
[1745578286401,1.37570847,606.3,604.87,1.164]
[1745578286694,1.37570847,606.29,604.88,0.30325483]
[1745578286901,1.37570847,606.28,604.88,0.30325483]
[1745578287199,2.50831539,606.27,604.87,1.4512982]
[1745578287501,1.37570847,606.26,604.88,0.30324917]
[1745578287701,2.50831539,606.25,604.88,0.30324917]
[1745578287902,1.37570847,606.24,604.88,0.30324917]
[1745578288102,1.37570847,606.23,604.88,0.30324917]
[1745578288302,2.50831539,606.22,604.88,0.30324917]
[1745578288498,2.50831539,606.21,604.88,0.30324917]
[1745578288703,1.37570847,606.2,604.88,0.30324917]
[1745578288903,1.37570847,606.19,604.88,0.30324917]
[1745578289104,2.50831539,606.18,604.88,0.30324917]
[1745578289406,1.37570847,606.17,604.88,0.30324917]
[1745578289600,1.37570847,606.16,604.88,0.30324917]
[1745578289804,1.37570847,606.15,604.88,0.30324917]
[1745578290001,1.37570847,606.14,604.88,0.30324917]
[1745578290196,1.37570847,606.13,604.88,0.30324917]
[1745578290498,2.50848567,606.12,604.88,0.30324917]
[1745578290699,1.37587875,606.11,604.88,0.30324917]
[1745578290901,1.37587875,606.11,605.01,1.04680513]
[1745578290902,1.37587875,606.1,605.01,1.04680513]
[1745578291104,2.50848567,606.09,605.02,0.30324917]
[1745578291304,1.37587875,606.08,605.02,0.30324917]
[1745578291503,1.37587875,606.07,605.02,0.30324917]
[1745578291704,1.37587875,606.06,605.02,0.30324917]
[1745578291904,2.50848567,606.05,605.02,0.30324917]
[1745578292102,1.37587875,606.04,605.02,0.30324917]
[1745578292305,1.37587875,606.03,605.02,0.30324917]
[1745578292503,1.37587875,606.02,605.02,0.30324917]
[1745578292805,1.37587875,606.01,605.02,0.30324917]
[1745578293105,2.50848567,606.0,605.02,0.30324917]
[1745578293304,1.37587875,605.99,605.02,0.30324917]
[1745578293505,1.37587875,605.98,605.02,0.30324917]
[1745578293807,1.37587875,605.97,605.02,0.30324917]
[1745578294001,1.13260692,606.0,604.87,1.164]
[1745578294002,2.50848567,605.96,604.93,0.28732073]
[1745578294206,1.37587875,605.95,604.94,0.30324917]
[1745578294503,2.50848567,605.94,604.94,0.30324917]
[1745578294704,1.37587875,605.93,604.94,0.30324917]
[1745578294908,1.37587875,605.92,604.94,0.30324917]
[1745578295206,1.37587875,605.91,604.95,0.30327707]
[1745578295407,1.37587875,605.9,604.96,0.30327707]
[1745578295706,2.50848567,605.89,604.97,0.30327707]
[1745578295906,1.37587875,605.88,604.94,0.30327707]
[1745578296106,1.37587875,605.87,604.95,0.30327707]
[1745578296306,2.50848567,605.86,604.94,0.30327707]
[1745578296507,1.37587875,605.85,604.94,0.30327707]
[1745578296708,1.37587875,605.84,604.87,1.164]
[1745578297005,1.37587875,605.83,604.93,0.28734564]
[1745578297206,1.37587875,605.82,604.94,0.30328178]
[1745578297408,1.37483435,605.81,604.94,0.30328178]
[1745578298009,1.13260692,605.83,604.94,0.30328178]
[1745578298303,1.37485353,605.8,604.94,0.30328178]